{"text_format":"1","workbook":"xlsx","n_sheets":4,"sheets":["Produktionsanlæg","Distributionsanlæg","Fællesfunktionsanlæg","Drop downliste"],"not_rendered":{"charts":0,"images":0,"macros":1,"external_links":0,"defined_names":2,"comments":0,"pivot_tables":0},"unopened":[],"bounds":{"document_bytes":16777216,"sheet_cells":100000,"rows_first":2000,"rows_last":500,"rows_between":2000,"halvings":0,"cell_chars":16384,"cell_head_chars":4096},"cells_cut":0,"cells_raw":0,"read":"whole","date_system":"1900"}

{"sheet":"Produktionsanlæg","index":0,"n_rows":562,"n_cols":6,"rows_kept":562,"cut":false,"hidden":false,"merged":[[0,5,1,5],[0,0,1,0],[0,1,1,1],[0,2,1,2],[0,3,1,3],[0,4,1,4]]}
["Produktionsanlæg","Enhed","Standard-levetid","Samlet mængde per 31/12-2014","Samlet mængde per 31/12-2015","Bemærk-ninger"]
[]
["Renseanlæg 1"]
["Mindre renseanlæg"]
["Mindre renseanlæg < 5.000 PE uden mulighed for opdeling","PE",40,null,0]
["Renseanlæg >= 5.000 PE, Vandbehandling"]
["Indløb med riste, Konstruktioner","PE",60,null,28884,"Hedensted"]
["Indløb med riste, Mek/EL","PE",20,null,28884]
["Indløb med riste, SRO","PE",10,null,28884]
["Sand- og fedtfang, Kontruktioner","PE",60,null,28884]
["Sand- og fedtfang, Mek/EL","PE",20,null,28884]
["Sand- og fedtfang, SRO","PE",10,null,28884]
["Forklaring, Konstruktioner","PE",60,null,0]
["Forklaring, Mek/EL","PE",20,null,0]
["Forklaring, SRO","PE",10,null,0]
["Beluftningstanke, Konstruktioner","PE",60,null,28884]
["Beluftningstanke, Mek/EL","PE",20,null,28884]
["Beluftningstanke, SRO","PE",10,null,28884]
["Efterklaringstanke, Konstruktioner","PE",60,null,28884]
["Efterklaringstanke, Mek/El","PE",20,null,28884]
["Efterklaringstanke, SRO","PE",10,null,28884]
["Efterbehandlingsanlæg (sandfilter), Konstruktioner","PE",60,null,0]
["Efterbehandlingsanlæg (sandfilter), Mek/EL","PE",20,null,0]
["Efterbehandlingsanlæg (sandfilter), SRO","PE",10,null,0]
["Renseanlæg >= 5.000 PE, Slambehandling"]
["Forafvanding, slam, Konstruktion","PE",60,null,0]
["Forafvanding, slam, Mek/EL","PE",20,null,0]
["Forafvanding, slam, SRO","PE",10,null,0]
["Rådnetanke, slam, Konstruktioner","PE",60,null,0]
["Rådnetanke, slam, Mek/EL","PE",20,null,0]
["Rådnetanke, slam, SRO","PE",10,null,0]
["Gasdisponering, Konstruktioner","PE",60,null,0]
["Gasdisponering, Mek/EL","PE",20,null,0]
["Gasdisponering, SRO","PE",10,null,0]
["Gasdisponering - elproduktionsanlæg, Konstruktioner","PE",60,null,0]
["Gasdisponering - elproduktionsanlæg, Mek/EL","PE",20,null,0]
["Gasdisponering - elproduktionsanlæg, SRO","PE",10,null,0]
["Slutafvanding, slam - lavteknologisk (slambede), Konstruktioner","PE",60,null,0]
["Slutafvanding, slam - lavteknologisk (slambede), Mek/EL","PE",20,null,0]
["Slutafvanding, slam - lavteknologisk (slambede), SRO","PE",10,null,0]
["Slutafvanding, slam - højteknologisk (centrifuger), Konstruktioner","PE",60,null,28884]
["Slutafvanding, slam - højteknologisk (centrifuger), Mek/El","PE",20,null,28884]
["Slutafvanding, slam - højteknologisk (centrifuger), SRO","PE",10,null,28884]
["Renseanlæg >= 5.000 PE, Slamdisponering"]
["Slutdisponering, slam - lavteknologisk (slammineralisering), Konstruktioner","PE",60,null,0]
["Slutdisponering, slam - lavteknologisk (slammineralisering), Mek/EL","PE",20,null,0]
["Slutdisponering, slam - lavteknologisk (slammineralisering), SRO","PE",10,null,0]
["Slutdisponering, slam - højteknologisk (slamtørring), Konstruktioner","PE",60,null,0]
["Slutdisponering, slam - højteknologisk (slamtørring), Mek/EL","PE",20,null,0]
["Slutdisponering, slam - højteknologisk (slamtørring), SRO","PE",10,null,0]
["Slutdisponering, slam - højteknologisk (slamtørring og -forbrænding), Konstruktioner","PE",60,null,0]
["Slutdisponering, slam - højteknologisk (slamtørring og -forbrænding), Mek/EL","PE",20,null,0]
["Slutdisponering, slam - højteknologisk (slamtørring og -forbrænding), SRO","PE",10,null,0]
["Renseanlæg 2"]
["Mindre renseanlæg"]
["Mindre renseanlæg < 5.000 PE uden mulighed for opdeling","PE",40,null,0]
["Renseanlæg >= 5.000 PE, Vandbehandling"]
["Indløb med riste, Konstruktioner","PE",60,null,29749,"Juelsminde"]
["Indløb med riste, Mek/EL","PE",20,null,29749]
["Indløb med riste, SRO","PE",10,null,29749]
["Sand- og fedtfang, Kontruktioner","PE",60,null,29749]
["Sand- og fedtfang, Mek/EL","PE",20,null,29749]
["Sand- og fedtfang, SRO","PE",10,null,29749]
["Forklaring, Konstruktioner","PE",60,null,0]
["Forklaring, Mek/EL","PE",20,null,0]
["Forklaring, SRO","PE",10,null,0]
["Beluftningstanke, Konstruktioner","PE",60,null,29749]
["Beluftningstanke, Mek/EL","PE",20,null,29749]
["Beluftningstanke, SRO","PE",10,null,29749]
["Efterklaringstanke, Konstruktioner","PE",60,null,29749]
["Efterklaringstanke, Mek/El","PE",20,null,29749]
["Efterklaringstanke, SRO","PE",10,null,29749]
["Efterbehandlingsanlæg (sandfilter), Konstruktioner","PE",60,null,0]
["Efterbehandlingsanlæg (sandfilter), Mek/EL","PE",20,null,0]
["Efterbehandlingsanlæg (sandfilter), SRO","PE",10,null,0]
["Renseanlæg >= 5.000 PE, Slambehandling"]
["Forafvanding, slam, Konstruktion","PE",60,null,0]
["Forafvanding, slam, Mek/EL","PE",20,null,0]
["Forafvanding, slam, SRO","PE",10,null,0]
["Rådnetanke, slam, Konstruktioner","PE",60,null,0]
["Rådnetanke, slam, Mek/EL","PE",20,null,0]
["Rådnetanke, slam, SRO","PE",10,null,0]
["Gasdisponering, Konstruktioner","PE",60,null,0]
["Gasdisponering, Mek/EL","PE",20,null,0]
["Gasdisponering, SRO","PE",10,null,0]
["Gasdisponering - elproduktionsanlæg, Konstruktioner","PE",60,null,0]
["Gasdisponering - elproduktionsanlæg, Mek/EL","PE",20,null,0]
["Gasdisponering - elproduktionsanlæg, SRO","PE",10,null,0]
["Slutafvanding, slam - lavteknologisk (slambede), Konstruktioner","PE",60,null,0]
["Slutafvanding, slam - lavteknologisk (slambede), Mek/EL","PE",20,null,0]
["Slutafvanding, slam - lavteknologisk (slambede), SRO","PE",10,null,0]
["Slutafvanding, slam - højteknologisk (centrifuger), Konstruktioner","PE",60,null,29749]
["Slutafvanding, slam - højteknologisk (centrifuger), Mek/El","PE",20,null,29749]
["Slutafvanding, slam - højteknologisk (centrifuger), SRO","PE",10,null,29749]
["Renseanlæg >= 5.000 PE, Slamdisponering"]
["Slutdisponering, slam - lavteknologisk (slammineralisering), Konstruktioner","PE",60,null,0]
["Slutdisponering, slam - lavteknologisk (slammineralisering), Mek/EL","PE",20,null,0]
["Slutdisponering, slam - lavteknologisk (slammineralisering), SRO","PE",10,null,0]
["Slutdisponering, slam - højteknologisk (slamtørring), Konstruktioner","PE",60,null,0]
["Slutdisponering, slam - højteknologisk (slamtørring), Mek/EL","PE",20,null,0]
["Slutdisponering, slam - højteknologisk (slamtørring), SRO","PE",10,null,0]
["Slutdisponering, slam - højteknologisk (slamtørring og -forbrænding), Konstruktioner","PE",60,null,0]
["Slutdisponering, slam - højteknologisk (slamtørring og -forbrænding), Mek/EL","PE",20,null,0]
["Slutdisponering, slam - højteknologisk (slamtørring og -forbrænding), SRO","PE",10,null,0]
["Renseanlæg 3"]
["Mindre renseanlæg"]
["Mindre renseanlæg < 5.000 PE uden mulighed for opdeling","PE",40,null,270]
["Renseanlæg >= 5.000 PE, Vandbehandling"]
["Indløb med riste, Konstruktioner","PE",60,null,0]
["Indløb med riste, Mek/EL","PE",20,null,0]
["Indløb med riste, SRO","PE",10,null,0]
["Sand- og fedtfang, Kontruktioner","PE",60,null,0]
["Sand- og fedtfang, Mek/EL","PE",20,null,0]
["Sand- og fedtfang, SRO","PE",10,null,0]
["Forklaring, Konstruktioner","PE",60,null,0]
["Forklaring, Mek/EL","PE",20,null,0]
["Forklaring, SRO","PE",10,null,0]
["Beluftningstanke, Konstruktioner","PE",60,null,0]
["Beluftningstanke, Mek/EL","PE",20,null,0]
["Beluftningstanke, SRO","PE",10,null,0]
["Efterklaringstanke, Konstruktioner","PE",60,null,0]
["Efterklaringstanke, Mek/El","PE",20,null,0]
["Efterklaringstanke, SRO","PE",10,null,0]
["Efterbehandlingsanlæg (sandfilter), Konstruktioner","PE",60,null,0]
["Efterbehandlingsanlæg (sandfilter), Mek/EL","PE",20,null,0]
["Efterbehandlingsanlæg (sandfilter), SRO","PE",10,null,0]
["Renseanlæg >= 5.000 PE, Slambehandling"]
["Forafvanding, slam, Konstruktion","PE",60,null,0]
["Forafvanding, slam, Mek/EL","PE",20,null,0]
["Forafvanding, slam, SRO","PE",10,null,0]
["Rådnetanke, slam, Konstruktioner","PE",60,null,0]
["Rådnetanke, slam, Mek/EL","PE",20,null,0]
["Rådnetanke, slam, SRO","PE",10,null,0]
["Gasdisponering, Konstruktioner","PE",60,null,0]
["Gasdisponering, Mek/EL","PE",20,null,0]
["Gasdisponering, SRO","PE",10,null,0]
["Gasdisponering - elproduktionsanlæg, Konstruktioner","PE",60,null,0]
["Gasdisponering - elproduktionsanlæg, Mek/EL","PE",20,null,0]
["Gasdisponering - elproduktionsanlæg, SRO","PE",10,null,0]
["Slutafvanding, slam - lavteknologisk (slambede), Konstruktioner","PE",60,null,0]
["Slutafvanding, slam - lavteknologisk (slambede), Mek/EL","PE",20,null,0]
["Slutafvanding, slam - lavteknologisk (slambede), SRO","PE",10,null,0]
["Slutafvanding, slam - højteknologisk (centrifuger), Konstruktioner","PE",60,null,0]
["Slutafvanding, slam - højteknologisk (centrifuger), Mek/El","PE",20,null,0]
["Slutafvanding, slam - højteknologisk (centrifuger), SRO","PE",10,null,0]
["Renseanlæg >= 5.000 PE, Slamdisponering"]
["Slutdisponering, slam - lavteknologisk (slammineralisering), Konstruktioner","PE",60,null,0]
["Slutdisponering, slam - lavteknologisk (slammineralisering), Mek/EL","PE",20,null,0]
["Slutdisponering, slam - lavteknologisk (slammineralisering), SRO","PE",10,null,0]
["Slutdisponering, slam - højteknologisk (slamtørring), Konstruktioner","PE",60,null,0]
["Slutdisponering, slam - højteknologisk (slamtørring), Mek/EL","PE",20,null,0]
["Slutdisponering, slam - højteknologisk (slamtørring), SRO","PE",10,null,0]
["Slutdisponering, slam - højteknologisk (slamtørring og -forbrænding), Konstruktioner","PE",60,null,0]
["Slutdisponering, slam - højteknologisk (slamtørring og -forbrænding), Mek/EL","PE",20,null,0]
["Slutdisponering, slam - højteknologisk (slamtørring og -forbrænding), SRO","PE",10,null,0]
["Renseanlæg 4"]
["Mindre renseanlæg"]
["Mindre renseanlæg < 5.000 PE uden mulighed for opdeling","PE",40,null,0]
["Renseanlæg >= 5.000 PE, Vandbehandling"]
["Indløb med riste, Konstruktioner","PE",60,null,14293,"Tørring"]
["Indløb med riste, Mek/EL","PE",20,null,14293]
["Indløb med riste, SRO","PE",10,null,14293]
["Sand- og fedtfang, Kontruktioner","PE",60,null,14293]
["Sand- og fedtfang, Mek/EL","PE",20,null,14293]
["Sand- og fedtfang, SRO","PE",10,null,14293]
["Forklaring, Konstruktioner","PE",60,null,0]
["Forklaring, Mek/EL","PE",20,null,0]
["Forklaring, SRO","PE",10,null,0]
["Beluftningstanke, Konstruktioner","PE",60,null,14293]
["Beluftningstanke, Mek/EL","PE",20,null,14293]
["Beluftningstanke, SRO","PE",10,null,14293]
["Efterklaringstanke, Konstruktioner","PE",60,null,14293]
["Efterklaringstanke, Mek/El","PE",20,null,14293]
["Efterklaringstanke, SRO","PE",10,null,14293]
["Efterbehandlingsanlæg (sandfilter), Konstruktioner","PE",60,null,0]
["Efterbehandlingsanlæg (sandfilter), Mek/EL","PE",20,null,0]
["Efterbehandlingsanlæg (sandfilter), SRO","PE",10,null,0]
["Renseanlæg >= 5.000 PE, Slambehandling"]
["Forafvanding, slam, Konstruktion","PE",60,null,0]
["Forafvanding, slam, Mek/EL","PE",20,null,0]
["Forafvanding, slam, SRO","PE",10,null,0]
["Rådnetanke, slam, Konstruktioner","PE",60,null,0]
["Rådnetanke, slam, Mek/EL","PE",20,null,0]
["Rådnetanke, slam, SRO","PE",10,null,0]
["Gasdisponering, Konstruktioner","PE",60,null,0]
["Gasdisponering, Mek/EL","PE",20,null,0]
["Gasdisponering, SRO","PE",10,null,0]
["Gasdisponering - elproduktionsanlæg, Konstruktioner","PE",60,null,0]
["Gasdisponering - elproduktionsanlæg, Mek/EL","PE",20,null,0]
["Gasdisponering - elproduktionsanlæg, SRO","PE",10,null,0]
["Slutafvanding, slam - lavteknologisk (slambede), Konstruktioner","PE",60,null,14293]
["Slutafvanding, slam - lavteknologisk (slambede), Mek/EL","PE",20,null,14293]
["Slutafvanding, slam - lavteknologisk (slambede), SRO","PE",10,null,14293]
["Slutafvanding, slam - højteknologisk (centrifuger), Konstruktioner","PE",60,null,14293]
["Slutafvanding, slam - højteknologisk (centrifuger), Mek/El","PE",20,null,14293]
["Slutafvanding, slam - højteknologisk (centrifuger), SRO","PE",10,null,14293]
["Renseanlæg >= 5.000 PE, Slamdisponering"]
["Slutdisponering, slam - lavteknologisk (slammineralisering), Konstruktioner","PE",60,null,0]
["Slutdisponering, slam - lavteknologisk (slammineralisering), Mek/EL","PE",20,null,0]
["Slutdisponering, slam - lavteknologisk (slammineralisering), SRO","PE",10,null,0]
["Slutdisponering, slam - højteknologisk (slamtørring), Konstruktioner","PE",60,null,0]
["Slutdisponering, slam - højteknologisk (slamtørring), Mek/EL","PE",20,null,0]
["Slutdisponering, slam - højteknologisk (slamtørring), SRO","PE",10,null,0]
["Slutdisponering, slam - højteknologisk (slamtørring og -forbrænding), Konstruktioner","PE",60,null,0]
["Slutdisponering, slam - højteknologisk (slamtørring og -forbrænding), Mek/EL","PE",20,null,0]
["Slutdisponering, slam - højteknologisk (slamtørring og -forbrænding), SRO","PE",10,null,0]
["Renseanlæg 5"]
["Mindre renseanlæg"]
["Mindre renseanlæg < 5.000 PE uden mulighed for opdeling","PE",40,null,0]
["Renseanlæg >= 5.000 PE, Vandbehandling"]
["Indløb med riste, Konstruktioner","PE",60,null,3777,"Åle"]
["Indløb med riste, Mek/EL","PE",20,null,3777]
["Indløb med riste, SRO","PE",10,null,3777]
["Sand- og fedtfang, Kontruktioner","PE",60,null,3777]
["Sand- og fedtfang, Mek/EL","PE",20,null,3777]
["Sand- og fedtfang, SRO","PE",10,null,3777]
["Forklaring, Konstruktioner","PE",60,null,0]
["Forklaring, Mek/EL","PE",20,null,0]
["Forklaring, SRO","PE",10,null,0]
["Beluftningstanke, Konstruktioner","PE",60,null,3777]
["Beluftningstanke, Mek/EL","PE",20,null,3777]
["Beluftningstanke, SRO","PE",10,null,3777]
["Efterklaringstanke, Konstruktioner","PE",60,null,3777]
["Efterklaringstanke, Mek/El","PE",20,null,3777]
["Efterklaringstanke, SRO","PE",10,null,3777]
["Efterbehandlingsanlæg (sandfilter), Konstruktioner","PE",60,null,3777]
["Efterbehandlingsanlæg (sandfilter), Mek/EL","PE",20,null,3777]
["Efterbehandlingsanlæg (sandfilter), SRO","PE",10,null,3777]
["Renseanlæg >= 5.000 PE, Slambehandling"]
["Forafvanding, slam, Konstruktion","PE",60,null,0]
["Forafvanding, slam, Mek/EL","PE",20,null,0]
["Forafvanding, slam, SRO","PE",10,null,0]
["Rådnetanke, slam, Konstruktioner","PE",60,null,0]
["Rådnetanke, slam, Mek/EL","PE",20,null,0]
["Rådnetanke, slam, SRO","PE",10,null,0]
["Gasdisponering, Konstruktioner","PE",60,null,0]
["Gasdisponering, Mek/EL","PE",20,null,0]
["Gasdisponering, SRO","PE",10,null,0]
["Gasdisponering - elproduktionsanlæg, Konstruktioner","PE",60,null,0]
["Gasdisponering - elproduktionsanlæg, Mek/EL","PE",20,null,0]
["Gasdisponering - elproduktionsanlæg, SRO","PE",10,null,0]
["Slutafvanding, slam - lavteknologisk (slambede), Konstruktioner","PE",60,null,3777]
["Slutafvanding, slam - lavteknologisk (slambede), Mek/EL","PE",20,null,3777]
["Slutafvanding, slam - lavteknologisk (slambede), SRO","PE",10,null,3777]
["Slutafvanding, slam - højteknologisk (centrifuger), Konstruktioner","PE",60,null,0]
["Slutafvanding, slam - højteknologisk (centrifuger), Mek/El","PE",20,null,0]
["Slutafvanding, slam - højteknologisk (centrifuger), SRO","PE",10,null,0]
["Renseanlæg >= 5.000 PE, Slamdisponering"]
["Slutdisponering, slam - lavteknologisk (slammineralisering), Konstruktioner","PE",60,null,3777]
["Slutdisponering, slam - lavteknologisk (slammineralisering), Mek/EL","PE",20,null,0]
["Slutdisponering, slam - lavteknologisk (slammineralisering), SRO","PE",10,null,0]
["Slutdisponering, slam - højteknologisk (slamtørring), Konstruktioner","PE",60,null,0]
["Slutdisponering, slam - højteknologisk (slamtørring), Mek/EL","PE",20,null,0]
["Slutdisponering, slam - højteknologisk (slamtørring), SRO","PE",10,null,0]
["Slutdisponering, slam - højteknologisk (slamtørring og -forbrænding), Konstruktioner","PE",60,null,0]
["Slutdisponering, slam - højteknologisk (slamtørring og -forbrænding), Mek/EL","PE",20,null,0]
["Slutdisponering, slam - højteknologisk (slamtørring og -forbrænding), SRO","PE",10,null,0]
["Renseanlæg 6"]
["Mindre renseanlæg"]
["Mindre renseanlæg < 5.000 PE uden mulighed for opdeling","PE",40]
["Renseanlæg >= 5.000 PE, Vandbehandling"]
["Indløb med riste, Konstruktioner","PE",60]
["Indløb med riste, Mek/EL","PE",20]
["Indløb med riste, SRO","PE",10]
["Sand- og fedtfang, Kontruktioner","PE",60]
["Sand- og fedtfang, Mek/EL","PE",20]
["Sand- og fedtfang, SRO","PE",10]
["Forklaring, Konstruktioner","PE",60]
["Forklaring, Mek/EL","PE",20]
["Forklaring, SRO","PE",10]
["Beluftningstanke, Konstruktioner","PE",60]
["Beluftningstanke, Mek/EL","PE",20]
["Beluftningstanke, SRO","PE",10]
["Efterklaringstanke, Konstruktioner","PE",60]
["Efterklaringstanke, Mek/El","PE",20]
["Efterklaringstanke, SRO","PE",10]
["Efterbehandlingsanlæg (sandfilter), Konstruktioner","PE",60]
["Efterbehandlingsanlæg (sandfilter), Mek/EL","PE",20]
["Efterbehandlingsanlæg (sandfilter), SRO","PE",10]
["Renseanlæg >= 5.000 PE, Slambehandling"]
["Forafvanding, slam, Konstruktion","PE",60]
["Forafvanding, slam, Mek/EL","PE",20]
["Forafvanding, slam, SRO","PE",10]
["Rådnetanke, slam, Konstruktioner","PE",60]
["Rådnetanke, slam, Mek/EL","PE",20]
["Rådnetanke, slam, SRO","PE",10]
["Gasdisponering, Konstruktioner","PE",60]
["Gasdisponering, Mek/EL","PE",20]
["Gasdisponering, SRO","PE",10]
["Gasdisponering - elproduktionsanlæg, Konstruktioner","PE",60]
["Gasdisponering - elproduktionsanlæg, Mek/EL","PE",20]
["Gasdisponering - elproduktionsanlæg, SRO","PE",10]
["Slutafvanding, slam - lavteknologisk (slambede), Konstruktioner","PE",60]
["Slutafvanding, slam - lavteknologisk (slambede), Mek/EL","PE",20]
["Slutafvanding, slam - lavteknologisk (slambede), SRO","PE",10]
["Slutafvanding, slam - højteknologisk (centrifuger), Konstruktioner","PE",60]
["Slutafvanding, slam - højteknologisk (centrifuger), Mek/El","PE",20]
["Slutafvanding, slam - højteknologisk (centrifuger), SRO","PE",10]
["Renseanlæg >= 5.000 PE, Slamdisponering"]
["Slutdisponering, slam - lavteknologisk (slammineralisering), Konstruktioner","PE",60]
["Slutdisponering, slam - lavteknologisk (slammineralisering), Mek/EL","PE",20]
["Slutdisponering, slam - lavteknologisk (slammineralisering), SRO","PE",10]
["Slutdisponering, slam - højteknologisk (slamtørring), Konstruktioner","PE",60]
["Slutdisponering, slam - højteknologisk (slamtørring), Mek/EL","PE",20]
["Slutdisponering, slam - højteknologisk (slamtørring), SRO","PE",10]
["Slutdisponering, slam - højteknologisk (slamtørring og -forbrænding), Konstruktioner","PE",60]
["Slutdisponering, slam - højteknologisk (slamtørring og -forbrænding), Mek/EL","PE",20]
["Slutdisponering, slam - højteknologisk (slamtørring og -forbrænding), SRO","PE",10]
["Renseanlæg 7"]
["Mindre renseanlæg"]
["Mindre renseanlæg < 5.000 PE uden mulighed for opdeling","PE",40]
["Renseanlæg >= 5.000 PE, Vandbehandling"]
["Indløb med riste, Konstruktioner","PE",60]
["Indløb med riste, Mek/EL","PE",20]
["Indløb med riste, SRO","PE",10]
["Sand- og fedtfang, Kontruktioner","PE",60]
["Sand- og fedtfang, Mek/EL","PE",20]
["Sand- og fedtfang, SRO","PE",10]
["Forklaring, Konstruktioner","PE",60]
["Forklaring, Mek/EL","PE",20]
["Forklaring, SRO","PE",10]
["Beluftningstanke, Konstruktioner","PE",60]
["Beluftningstanke, Mek/EL","PE",20]
["Beluftningstanke, SRO","PE",10]
["Efterklaringstanke, Konstruktioner","PE",60]
["Efterklaringstanke, Mek/El","PE",20]
["Efterklaringstanke, SRO","PE",10]
["Efterbehandlingsanlæg (sandfilter), Konstruktioner","PE",60]
["Efterbehandlingsanlæg (sandfilter), Mek/EL","PE",20]
["Efterbehandlingsanlæg (sandfilter), SRO","PE",10]
["Renseanlæg >= 5.000 PE, Slambehandling"]
["Forafvanding, slam, Konstruktion","PE",60]
["Forafvanding, slam, Mek/EL","PE",20]
["Forafvanding, slam, SRO","PE",10]
["Rådnetanke, slam, Konstruktioner","PE",60]
["Rådnetanke, slam, Mek/EL","PE",20]
["Rådnetanke, slam, SRO","PE",10]
["Gasdisponering, Konstruktioner","PE",60]
["Gasdisponering, Mek/EL","PE",20]
["Gasdisponering, SRO","PE",10]
["Gasdisponering - elproduktionsanlæg, Konstruktioner","PE",60]
["Gasdisponering - elproduktionsanlæg, Mek/EL","PE",20]
["Gasdisponering - elproduktionsanlæg, SRO","PE",10]
["Slutafvanding, slam - lavteknologisk (slambede), Konstruktioner","PE",60]
["Slutafvanding, slam - lavteknologisk (slambede), Mek/EL","PE",20]
["Slutafvanding, slam - lavteknologisk (slambede), SRO","PE",10]
["Slutafvanding, slam - højteknologisk (centrifuger), Konstruktioner","PE",60]
["Slutafvanding, slam - højteknologisk (centrifuger), Mek/El","PE",20]
["Slutafvanding, slam - højteknologisk (centrifuger), SRO","PE",10]
["Renseanlæg >= 5.000 PE, Slamdisponering"]
["Slutdisponering, slam - lavteknologisk (slammineralisering), Konstruktioner","PE",60]
["Slutdisponering, slam - lavteknologisk (slammineralisering), Mek/EL","PE",20]
["Slutdisponering, slam - lavteknologisk (slammineralisering), SRO","PE",10]
["Slutdisponering, slam - højteknologisk (slamtørring), Konstruktioner","PE",60]
["Slutdisponering, slam - højteknologisk (slamtørring), Mek/EL","PE",20]
["Slutdisponering, slam - højteknologisk (slamtørring), SRO","PE",10]
["Slutdisponering, slam - højteknologisk (slamtørring og -forbrænding), Konstruktioner","PE",60]
["Slutdisponering, slam - højteknologisk (slamtørring og -forbrænding), Mek/EL","PE",20]
["Slutdisponering, slam - højteknologisk (slamtørring og -forbrænding), SRO","PE",10]
["Renseanlæg 8"]
["Mindre renseanlæg"]
["Mindre renseanlæg < 5.000 PE uden mulighed for opdeling","PE",40]
["Renseanlæg >= 5.000 PE, Vandbehandling"]
["Indløb med riste, Konstruktioner","PE",60]
["Indløb med riste, Mek/EL","PE",20]
["Indløb med riste, SRO","PE",10]
["Sand- og fedtfang, Kontruktioner","PE",60]
["Sand- og fedtfang, Mek/EL","PE",20]
["Sand- og fedtfang, SRO","PE",10]
["Forklaring, Konstruktioner","PE",60]
["Forklaring, Mek/EL","PE",20]
["Forklaring, SRO","PE",10]
["Beluftningstanke, Konstruktioner","PE",60]
["Beluftningstanke, Mek/EL","PE",20]
["Beluftningstanke, SRO","PE",10]
["Efterklaringstanke, Konstruktioner","PE",60]
["Efterklaringstanke, Mek/El","PE",20]
["Efterklaringstanke, SRO","PE",10]
["Efterbehandlingsanlæg (sandfilter), Konstruktioner","PE",60]
["Efterbehandlingsanlæg (sandfilter), Mek/EL","PE",20]
["Efterbehandlingsanlæg (sandfilter), SRO","PE",10]
["Renseanlæg >= 5.000 PE, Slambehandling"]
["Forafvanding, slam, Konstruktion","PE",60]
["Forafvanding, slam, Mek/EL","PE",20]
["Forafvanding, slam, SRO","PE",10]
["Rådnetanke, slam, Konstruktioner","PE",60]
["Rådnetanke, slam, Mek/EL","PE",20]
["Rådnetanke, slam, SRO","PE",10]
["Gasdisponering, Konstruktioner","PE",60]
["Gasdisponering, Mek/EL","PE",20]
["Gasdisponering, SRO","PE",10]
["Gasdisponering - elproduktionsanlæg, Konstruktioner","PE",60]
["Gasdisponering - elproduktionsanlæg, Mek/EL","PE",20]
["Gasdisponering - elproduktionsanlæg, SRO","PE",10]
["Slutafvanding, slam - lavteknologisk (slambede), Konstruktioner","PE",60]
["Slutafvanding, slam - lavteknologisk (slambede), Mek/EL","PE",20]
["Slutafvanding, slam - lavteknologisk (slambede), SRO","PE",10]
["Slutafvanding, slam - højteknologisk (centrifuger), Konstruktioner","PE",60]
["Slutafvanding, slam - højteknologisk (centrifuger), Mek/El","PE",20]
["Slutafvanding, slam - højteknologisk (centrifuger), SRO","PE",10]
["Renseanlæg >= 5.000 PE, Slamdisponering"]
["Slutdisponering, slam - lavteknologisk (slammineralisering), Konstruktioner","PE",60]
["Slutdisponering, slam - lavteknologisk (slammineralisering), Mek/EL","PE",20]
["Slutdisponering, slam - lavteknologisk (slammineralisering), SRO","PE",10]
["Slutdisponering, slam - højteknologisk (slamtørring), Konstruktioner","PE",60]
["Slutdisponering, slam - højteknologisk (slamtørring), Mek/EL","PE",20]
["Slutdisponering, slam - højteknologisk (slamtørring), SRO","PE",10]
["Slutdisponering, slam - højteknologisk (slamtørring og -forbrænding), Konstruktioner","PE",60]
["Slutdisponering, slam - højteknologisk (slamtørring og -forbrænding), Mek/EL","PE",20]
["Slutdisponering, slam - højteknologisk (slamtørring og -forbrænding), SRO","PE",10]
["Renseanlæg 9"]
["Mindre renseanlæg"]
["Mindre renseanlæg < 5.000 PE uden mulighed for opdeling","PE",40]
["Renseanlæg >= 5.000 PE, Vandbehandling"]
["Indløb med riste, Konstruktioner","PE",60]
["Indløb med riste, Mek/EL","PE",20]
["Indløb med riste, SRO","PE",10]
["Sand- og fedtfang, Kontruktioner","PE",60]
["Sand- og fedtfang, Mek/EL","PE",20]
["Sand- og fedtfang, SRO","PE",10]
["Forklaring, Konstruktioner","PE",60]
["Forklaring, Mek/EL","PE",20]
["Forklaring, SRO","PE",10]
["Beluftningstanke, Konstruktioner","PE",60]
["Beluftningstanke, Mek/EL","PE",20]
["Beluftningstanke, SRO","PE",10]
["Efterklaringstanke, Konstruktioner","PE",60]
["Efterklaringstanke, Mek/El","PE",20]
["Efterklaringstanke, SRO","PE",10]
["Efterbehandlingsanlæg (sandfilter), Konstruktioner","PE",60]
["Efterbehandlingsanlæg (sandfilter), Mek/EL","PE",20]
["Efterbehandlingsanlæg (sandfilter), SRO","PE",10]
["Renseanlæg >= 5.000 PE, Slambehandling"]
["Forafvanding, slam, Konstruktion","PE",60]
["Forafvanding, slam, Mek/EL","PE",20]
["Forafvanding, slam, SRO","PE",10]
["Rådnetanke, slam, Konstruktioner","PE",60]
["Rådnetanke, slam, Mek/EL","PE",20]
["Rådnetanke, slam, SRO","PE",10]
["Gasdisponering, Konstruktioner","PE",60]
["Gasdisponering, Mek/EL","PE",20]
["Gasdisponering, SRO","PE",10]
["Gasdisponering - elproduktionsanlæg, Konstruktioner","PE",60]
["Gasdisponering - elproduktionsanlæg, Mek/EL","PE",20]
["Gasdisponering - elproduktionsanlæg, SRO","PE",10]
["Slutafvanding, slam - lavteknologisk (slambede), Konstruktioner","PE",60]
["Slutafvanding, slam - lavteknologisk (slambede), Mek/EL","PE",20]
["Slutafvanding, slam - lavteknologisk (slambede), SRO","PE",10]
["Slutafvanding, slam - højteknologisk (centrifuger), Konstruktioner","PE",60]
["Slutafvanding, slam - højteknologisk (centrifuger), Mek/El","PE",20]
["Slutafvanding, slam - højteknologisk (centrifuger), SRO","PE",10]
["Renseanlæg >= 5.000 PE, Slamdisponering"]
["Slutdisponering, slam - lavteknologisk (slammineralisering), Konstruktioner","PE",60]
["Slutdisponering, slam - lavteknologisk (slammineralisering), Mek/EL","PE",20]
["Slutdisponering, slam - lavteknologisk (slammineralisering), SRO","PE",10]
["Slutdisponering, slam - højteknologisk (slamtørring), Konstruktioner","PE",60]
["Slutdisponering, slam - højteknologisk (slamtørring), Mek/EL","PE",20]
["Slutdisponering, slam - højteknologisk (slamtørring), SRO","PE",10]
["Slutdisponering, slam - højteknologisk (slamtørring og -forbrænding), Konstruktioner","PE",60]
["Slutdisponering, slam - højteknologisk (slamtørring og -forbrænding), Mek/EL","PE",20]
["Slutdisponering, slam - højteknologisk (slamtørring og -forbrænding), SRO","PE",10]
["Renseanlæg 10"]
["Mindre renseanlæg"]
["Mindre renseanlæg < 5.000 PE uden mulighed for opdeling","PE",40]
["Renseanlæg >= 5.000 PE, Vandbehandling"]
["Indløb med riste, Konstruktioner","PE",60]
["Indløb med riste, Mek/EL","PE",20]
["Indløb med riste, SRO","PE",10]
["Sand- og fedtfang, Kontruktioner","PE",60]
["Sand- og fedtfang, Mek/EL","PE",20]
["Sand- og fedtfang, SRO","PE",10]
["Forklaring, Konstruktioner","PE",60]
["Forklaring, Mek/EL","PE",20]
["Forklaring, SRO","PE",10]
["Beluftningstanke, Konstruktioner","PE",60]
["Beluftningstanke, Mek/EL","PE",20]
["Beluftningstanke, SRO","PE",10]
["Efterklaringstanke, Konstruktioner","PE",60]
["Efterklaringstanke, Mek/El","PE",20]
["Efterklaringstanke, SRO","PE",10]
["Efterbehandlingsanlæg (sandfilter), Konstruktioner","PE",60]
["Efterbehandlingsanlæg (sandfilter), Mek/EL","PE",20]
["Efterbehandlingsanlæg (sandfilter), SRO","PE",10]
["Renseanlæg >= 5.000 PE, Slambehandling"]
["Forafvanding, slam, Konstruktion","PE",60]
["Forafvanding, slam, Mek/EL","PE",20]
["Forafvanding, slam, SRO","PE",10]
["Rådnetanke, slam, Konstruktioner","PE",60]
["Rådnetanke, slam, Mek/EL","PE",20]
["Rådnetanke, slam, SRO","PE",10]
["Gasdisponering, Konstruktioner","PE",60]
["Gasdisponering, Mek/EL","PE",20]
["Gasdisponering, SRO","PE",10]
["Gasdisponering - elproduktionsanlæg, Konstruktioner","PE",60]
["Gasdisponering - elproduktionsanlæg, Mek/EL","PE",20]
["Gasdisponering - elproduktionsanlæg, SRO","PE",10]
["Slutafvanding, slam - lavteknologisk (slambede), Konstruktioner","PE",60]
["Slutafvanding, slam - lavteknologisk (slambede), Mek/EL","PE",20]
["Slutafvanding, slam - lavteknologisk (slambede), SRO","PE",10]
["Slutafvanding, slam - højteknologisk (centrifuger), Konstruktioner","PE",60]
["Slutafvanding, slam - højteknologisk (centrifuger), Mek/El","PE",20]
["Slutafvanding, slam - højteknologisk (centrifuger), SRO","PE",10]
["Renseanlæg >= 5.000 PE, Slamdisponering"]
["Slutdisponering, slam - lavteknologisk (slammineralisering), Konstruktioner","PE",60]
["Slutdisponering, slam - lavteknologisk (slammineralisering), Mek/EL","PE",20]
["Slutdisponering, slam - lavteknologisk (slammineralisering), SRO","PE",10]
["Slutdisponering, slam - højteknologisk (slamtørring), Konstruktioner","PE",60]
["Slutdisponering, slam - højteknologisk (slamtørring), Mek/EL","PE",20]
["Slutdisponering, slam - højteknologisk (slamtørring), SRO","PE",10]
["Slutdisponering, slam - højteknologisk (slamtørring og -forbrænding), Konstruktioner","PE",60]
["Slutdisponering, slam - højteknologisk (slamtørring og -forbrænding), Mek/EL","PE",20]
["Slutdisponering, slam - højteknologisk (slamtørring og -forbrænding), SRO","PE",10]
["Mindre renseanlæg"]
["Mindre renseanlæg < 5.000 PE uden mulighed for opdeling","PE",40]
["Renseanlæg >= 5.000 PE, Vandbehandling"]
["Indløb med riste, Konstruktioner","PE",60]
["Indløb med riste, Mek/EL","PE",20]
["Indløb med riste, SRO","PE",10]
["Sand- og fedtfang, Kontruktioner","PE",60]
["Sand- og fedtfang, Mek/EL","PE",20]
["Sand- og fedtfang, SRO","PE",10]
["Forklaring, Konstruktioner","PE",60]
["Forklaring, Mek/EL","PE",20]
["Forklaring, SRO","PE",10]
["Beluftningstanke, Konstruktioner","PE",60]
["Beluftningstanke, Mek/EL","PE",20]
["Beluftningstanke, SRO","PE",10]
["Efterklaringstanke, Konstruktioner","PE",60]
["Efterklaringstanke, Mek/El","PE",20]
["Efterklaringstanke, SRO","PE",10]
["Efterbehandlingsanlæg (sandfilter), Konstruktioner","PE",60]
["Efterbehandlingsanlæg (sandfilter), Mek/EL","PE",20]
["Efterbehandlingsanlæg (sandfilter), SRO","PE",10]
["Renseanlæg >= 5.000 PE, Slambehandling"]
["Forafvanding, slam, Konstruktion","PE",60]
["Forafvanding, slam, Mek/EL","PE",20]
["Forafvanding, slam, SRO","PE",10]
["Rådnetanke, slam, Konstruktioner","PE",60]
["Rådnetanke, slam, Mek/EL","PE",20]
["Rådnetanke, slam, SRO","PE",10]
["Gasdisponering, Konstruktioner","PE",60]
["Gasdisponering, Mek/EL","PE",20]
["Gasdisponering, SRO","PE",10]
["Gasdisponering - elproduktionsanlæg, Konstruktioner","PE",60]
["Gasdisponering - elproduktionsanlæg, Mek/EL","PE",20]
["Gasdisponering - elproduktionsanlæg, SRO","PE",10]
["Slutafvanding, slam - lavteknologisk (slambede), Konstruktioner","PE",60]
["Slutafvanding, slam - lavteknologisk (slambede), Mek/EL","PE",20]
["Slutafvanding, slam - lavteknologisk (slambede), SRO","PE",10]
["Slutafvanding, slam - højteknologisk (centrifuger), Konstruktioner","PE",60]
["Slutafvanding, slam - højteknologisk (centrifuger), Mek/El","PE",20]
["Slutafvanding, slam - højteknologisk (centrifuger), SRO","PE",10]
["Renseanlæg >= 5.000 PE, Slamdisponering"]
["Slutdisponering, slam - lavteknologisk (slammineralisering), Konstruktioner","PE",60]
["Slutdisponering, slam - lavteknologisk (slammineralisering), Mek/EL","PE",20]
["Slutdisponering, slam - lavteknologisk (slammineralisering), SRO","PE",10]
["Slutdisponering, slam - højteknologisk (slamtørring), Konstruktioner","PE",60]
["Slutdisponering, slam - højteknologisk (slamtørring), Mek/EL","PE",20]
["Slutdisponering, slam - højteknologisk (slamtørring), SRO","PE",10]
["Slutdisponering, slam - højteknologisk (slamtørring og -forbrænding), Konstruktioner","PE",60]
["Slutdisponering, slam - højteknologisk (slamtørring og -forbrænding), Mek/EL","PE",20]
["Slutdisponering, slam - højteknologisk (slamtørring og -forbrænding), SRO","PE",10]

{"sheet":"Distributionsanlæg","index":1,"n_rows":322,"n_cols":6,"rows_kept":322,"cut":false,"hidden":false,"merged":[[0,5,1,5],[0,0,1,0],[0,1,1,1],[0,2,1,2],[0,3,1,3],[0,4,1,4]]}
["Distributionsanlæg","Enhed","Standard-levetid","Samlet mængde per 31/12-2014","Samlet mængde per 31/12-2015","Bemærk-ninger"]
[]
["Ledningsnet - Land"]
["Ledningsnet ≤ Ø 200 mm ","meter",75,null,{"$f":"284043+37772.33-5+9603.57","v":331413.90000000002}]
["Ø 200 mm < Ledningsnet ≤ Ø 500 mm ","meter",75,null,{"$f":"114657+7891.42-0","v":122548.42}]
["Ø 500 mm < Ledningsnet ≤ Ø 800 mm","meter",75,null,{"$f":"19607+46.07-0","v":19653.07}]
["Ø 800 mm < Ledningsnet ≤ Ø 1000 mm","meter",75,null,{"$f":"2616+0-0","v":2616}]
["Ø 1000 mm < Ledningsnet ≤ Ø 1200 mm","meter",75,null,{"$f":"646+141.24-0","v":787.24}]
["Ø 1200 mm < Ledningsnet ≤ Ø 1600 mm","meter",75,null,{"$f":"794+0-0","v":794}]
["Ledningsnet > Ø 1600 mm (rørbassiner og transportledninger)","meter",75,null,{"$f":"0+8-0","v":8}]
["Strømpeforing ≤ Ø 200 mm","meter",50,null,{"$f":"0+0-0","v":0}]
["Strømpeforing Ø 200 mm < Ledningsnet ≤ Ø 500 mm","meter",50,null,{"$f":"0+0-0","v":0}]
["Strømpeforing Ø 500 mm < Ledningsnet ≤ Ø 800 mm","meter",50,null,0]
["Strømpeforing Ø 800 mm < Ledningsnet ≤ Ø 1000 mm","meter",50,null,0]
["Strømpeforing Ø 1000 mm < Ledningsnet ≤ Ø 1200 mm","meter",50,null,0]
["Strømpeforing Ø 1200 mm < Ledningsnet ≤ Ø 1600 mm","meter",50,null,0]
["Ledningsnet - By"]
["Ledningsnet ≤ Ø 200 mm ","meter",75,null,{"$f":"253659+17146.39-1289.23+3860.13","v":273376.29000000004}]
["Ø 200 mm < Ledningsnet ≤ Ø 500 mm ","meter",75,null,{"$f":"127874+7727.51-0+2762.9","v":138364.41}]
["Ø 500 mm < Ledningsnet ≤ Ø 800 mm","meter",75,null,{"$f":"24543+999.93-0+361.03","v":25903.96}]
["Ø 800 mm < Ledningsnet ≤ Ø 1000 mm","meter",75,null,{"$f":"5039+179.14-0","v":5218.1400000000003}]
["Ø 1000 mm < Ledningsnet ≤ Ø 1200 mm","meter",75,null,{"$f":"1518+45.23-0","v":1563.23}]
["Ø 1200 mm < Ledningsnet ≤ Ø 1600 mm","meter",75,null,{"$f":"1578+43.93-0+756.15","v":2378.08}]
["Ledningsnet > Ø 1600 mm (rørbassiner og transportledninger)","meter",75,null,{"$f":"0+0-0","v":0}]
["Strømpeforing ≤ Ø 200 mm","meter",50,null,{"$f":"0+2289.31-0+3","v":2292.31}]
["Strømpeforing Ø 200 mm < Ledningsnet ≤ Ø 500 mm","meter",50,null,{"$f":"0+1473.07-0+1.99","v":1475.06}]
["Strømpeforing Ø 500 mm < Ledningsnet ≤ Ø 800 mm","meter",50,null,{"$f":"0+778.59-0","v":778.59}]
["Strømpeforing Ø 800 mm < Ledningsnet ≤ Ø 1000 mm","meter",50,null,{"$f":"0+0-0","v":0}]
["Strømpeforing Ø 1000 mm < Ledningsnet ≤ Ø 1200 mm","meter",50,null,{"$f":"0+56.74-0","v":56.74}]
["Strømpeforing Ø 1200 mm < Ledningsnet ≤ Ø 1600 mm","meter",50,null,{"$f":"0+0-0","v":0}]
["Ledningsnet - City"]
["Ledningsnet ≤ Ø 200 mm ","meter",75,null,{"$f":"238+0-0","v":238}]
["Ø 200 mm < Ledningsnet ≤ Ø 500 mm ","meter",75,null,{"$f":"53+0-0","v":53}]
["Ø 500 mm < Ledningsnet ≤ Ø 800 mm","meter",75,null,{"$f":"0+0-0","v":0}]
["Ø 800 mm < Ledningsnet ≤ Ø 1000 mm","meter",75,null,{"$f":"102+0-0","v":102}]
["Ø 1000 mm < Ledningsnet ≤ Ø 1200 mm","meter",75,null,{"$f":"0+0-0","v":0}]
["Ø 1200 mm < Ledningsnet ≤ Ø 1600 mm","meter",75,null,{"$f":"0+0-0","v":0}]
["Ledningsnet > Ø 1600 mm (rørbassiner og transportledninger)","meter",75,null,0]
["Strømpeforing ≤ Ø 200 mm","meter",50,null,0]
["Strømpeforing Ø 200 mm < Ledningsnet ≤ Ø 500 mm","meter",50,null,0]
["Strømpeforing Ø 500 mm < Ledningsnet ≤ Ø 800 mm","meter",50,null,0]
["Strømpeforing Ø 800 mm < Ledningsnet ≤ Ø 1000 mm","meter",50,null,0]
["Strømpeforing Ø 1000 mm < Ledningsnet ≤ Ø 1200 mm","meter",50,null,0]
["Strømpeforing Ø 1200 mm < Ledningsnet ≤ Ø 1600 mm","meter",50,null,0]
["Ledningsnet - Indre city"]
["Ledningsnet ≤ Ø 200 mm ","meter",75,null,{"$f":"0","v":0}]
["Ø 200 mm < Ledningsnet ≤ Ø 500 mm ","meter",75,null,{"$f":"0","v":0}]
["Ø 500 mm < Ledningsnet ≤ Ø 800 mm","meter",75,null,{"$f":"0","v":0}]
["Ø 800 mm < Ledningsnet ≤ Ø 1000 mm","meter",75,null,{"$f":"0","v":0}]
["Ø 1000 mm < Ledningsnet ≤ Ø 1200 mm","meter",75,null,{"$f":"0","v":0}]
["Ø 1200 mm < Ledningsnet ≤ Ø 1600 mm","meter",75,null,{"$f":"0","v":0}]
["Ledningsnet > Ø 1600 mm (rørbassiner og transportledninger)","meter",75,null,0]
["Strømpeforing ≤ Ø 200 mm","meter",50,null,0]
["Strømpeforing Ø 200 mm < Ledningsnet ≤ Ø 500 mm","meter",50,null,0]
["Strømpeforing Ø 500 mm < Ledningsnet ≤ Ø 800 mm","meter",50,null,0]
["Strømpeforing Ø 800 mm < Ledningsnet ≤ Ø 1000 mm","meter",50,null,0]
["Strømpeforing Ø 1000 mm < Ledningsnet ≤ Ø 1200 mm","meter",50,null,0]
["Strømpeforing Ø 1200 mm < Ledningsnet ≤ Ø 1600 mm","meter",50,null,0]
["Brønde og stik, ledningsnet - Land"]
["Brønde","stk.",75,null,{"$f":"5912+163-0+1","v":6076}]
["Stik","stk.",75,null,{"$f":"10112+0-0","v":10112}]
["Brønde og stik, ledningsnet - By"]
["Brønde","stk.",75,null,{"$f":"8557+725-393+150","v":9039}]
["Stik","stk.",75,null,{"$f":"14103+78-0","v":14181}]
["Brønde og stik, ledningsnet - City"]
["Brønde","stk.",75,null,{"$f":"7+14-0","v":21}]
["Stik","stk.",75,null,{"$f":"14+0-0","v":14}]
["Brønde og stik, ledningsnet - Indre city"]
["Brønde","stk.",75]
["Stik","stk.",75]
["Små pumpestationer inkl. SRO-anlæg - Land"]
["Tryksatte minipumpestationer (husstandssystemer)","stk.",30,null,352]
["Pumpestationer i brønde (< 6,25 m2), Konstruktioner","stk.",50,null,46]
["Pumpestationer i brønde (< 6,25 m2), Mek/EL","stk.",20,null,46]
["Pumpestationer i brønde (< 6,25 m2), SRO","stk.",10,null,46]
["Pumpestationer m. overbygning (< 20 m2), Konstruktioner","stk.",50,null,0]
["Pumpestationer m. overbygning (< 20 m2), Mek/EL","stk.",20,null,0]
["Pumpestationer m. overbygning (< 20 m2), SRO","stk.",10,null,0]
["Pumpestationer i underjordiske bygværker (<50 m2), Konstruktioner","stk.",50,null,6]
["Pumpestationer i underjordiske bygværker (<50 m2), Mek/El","stk.",20,null,6]
["Pumpestationer i underjordiske bygværker (<50 m2), SRO","stk.",10,null,6]
["Små pumpestationer inkl. SRO-anlæg - By"]
["Tryksatte minipumpestationer (husstandssystemer)","stk.",30,null,0]
["Pumpestationer i brønde (< 6,25 m2), Konstruktioner","stk.",50,null,41]
["Pumpestationer i brønde (< 6,25 m2), Mek/EL","stk.",20,null,41]
["Pumpestationer i brønde (< 6,25 m2), SRO","stk.",10,null,41]
["Pumpestationer m. overbygning (< 20 m2), Konstruktioner","stk.",50,null,{"$f":"5+1","v":6}]
["Pumpestationer m. overbygning (< 20 m2), Mek/EL","stk.",20,null,{"$f":"5+2","v":7}]
["Pumpestationer m. overbygning (< 20 m2), SRO","stk.",10,null,{"$f":"5+2","v":7}]
["Pumpestationer i underjordiske bygværker (<50 m2), Konstruktioner","stk.",50,null,4]
["Pumpestationer i underjordiske bygværker (<50 m2), Mek/El","stk.",20,null,{"$f":"4+2","v":6}]
["Pumpestationer i underjordiske bygværker (<50 m2), SRO","stk.",10,null,4]
["Små pumpestationer inkl. SRO-anlæg - City"]
["Tryksatte minipumpestationer (husstandssystemer)","stk.",30,null,0]
["Pumpestationer i brønde (< 6,25 m2), Konstruktioner","stk.",50,null,0]
["Pumpestationer i brønde (< 6,25 m2), Mek/EL","stk.",20,null,0]
["Pumpestationer i brønde (< 6,25 m2), SRO","stk.",10,null,0]
["Pumpestationer m. overbygning (< 20 m2), Konstruktioner","stk.",50,null,0]
["Pumpestationer m. overbygning (< 20 m2), Mek/EL","stk.",20,null,0]
["Pumpestationer m. overbygning (< 20 m2), SRO","stk.",10,null,0]
["Pumpestationer i underjordiske bygværker (<50 m2), Konstruktioner","stk.",50,null,0]
["Pumpestationer i underjordiske bygværker (<50 m2), Mek/El","stk.",20,null,0]
["Pumpestationer i underjordiske bygværker (<50 m2), SRO","stk.",10,null,0]
["Små pumpestationer inkl. SRO-anlæg - Indre city"]
["Tryksatte minipumpestationer (husstandssystemer)","stk.",30,null,0]
["Pumpestationer i brønde (< 6,25 m2), Konstruktioner","stk.",50,null,0]
["Pumpestationer i brønde (< 6,25 m2), Mek/EL","stk.",20,null,0]
["Pumpestationer i brønde (< 6,25 m2), SRO","stk.",10,null,0]
["Pumpestationer m. overbygning (< 20 m2), Konstruktioner","stk.",50,null,0]
["Pumpestationer m. overbygning (< 20 m2), Mek/EL","stk.",20,null,0]
["Pumpestationer m. overbygning (< 20 m2), SRO","stk.",10,null,0]
["Pumpestationer i underjordiske bygværker (<50 m2), Konstruktioner","stk.",50,null,0]
["Pumpestationer i underjordiske bygværker (<50 m2), Mek/El","stk.",20,null,0]
["Pumpestationer i underjordiske bygværker (<50 m2), SRO","stk.",10,null,0]
["Store pumpestationer: inkl. SRO-anlæg - Land"]
["Kælder","m2",75,null,213.64]
["Pumpeinstallation Miljøklasse A (100-300 l/s) - Mek/EL","stk.",20,null,51]
["Pumpeinstallation Miljøklasse A (100-300 l/s) - SRO","stk.",10,null,51]
["Pumpeinstallation Miljøklasse A (300-600 l/s) - Mek/EL","stk.",20,null,18]
["Pumpeinstallation Miljøklasse A (300-600 l/s) - SRO","stk.",10,null,18]
["Pumpeinstallation Miljøklasse A (600-1.000 l/s) - Mek/EL","stk.",20,null,0]
["Pumpeinstallation Miljøklasse A (600-1.000 l/s) - SRO","stk.",10,null,0]
["Pumpeinstallation Miljøklasse A (1.000-1.500 l/s) - Mek/EL","stk.",20,null,1]
["Pumpeinstallation Miljøklasse A (1.000-1.500 l/s) - SRO","stk.",10,null,1]
["Pumpeinstallation Miljøklasse B (100-300 l/s) - Mek/EL","stk.",20,null,0]
["Pumpeinstallation Miljøklasse B (100-300 l/s) - SRO","stk.",10,null,0]
["Pumpeinstallation Miljøklasse B (300-600 l/s) - Mek/EL","stk.",20,null,0]
["Pumpeinstallation Miljøklasse B (300-600 l/s) - SRO","stk.",10,null,0]
["Pumpeinstallation Miljøklasse B (600-1.000 l/s) - Mek/EL","stk.",20,null,0]
["Pumpeinstallation Miljøklasse B (600-1.000 l/s) - SRO","stk.",10,null,0]
["Pumpeinstallation Miljøklasse B (1.000-1.500 l/s) - Mek/EL","stk.",20,null,0]
["Pumpeinstallation Miljøklasse B (1.000-1.500 l/s) - SRO","stk.",10,null,0]
["Overbygning","m2",75,null,0]
["Store pumpestationer: inkl. SRO-anlæg - By"]
["Kælder","m2",75,null,0]
["Pumpeinstallation Miljøklasse A (100-300 l/s) - Mek/EL","stk.",20,null,40]
["Pumpeinstallation Miljøklasse A (100-300 l/s) - SRO","stk.",10,null,40]
["Pumpeinstallation Miljøklasse A (300-600 l/s) - Mek/EL","stk.",20,null,12]
["Pumpeinstallation Miljøklasse A (300-600 l/s) - SRO","stk.",10,null,12]
["Pumpeinstallation Miljøklasse A (600-1.000 l/s) - Mek/EL","stk.",20,null,3]
["Pumpeinstallation Miljøklasse A (600-1.000 l/s) - SRO","stk.",10,null,3]
["Pumpeinstallation Miljøklasse A (1.000-1.500 l/s) - Mek/EL","stk.",20,null,3]
["Pumpeinstallation Miljøklasse A (1.000-1.500 l/s) - SRO","stk.",10,null,3]
["Pumpeinstallation Miljøklasse B (100-300 l/s) - Mek/EL","stk.",20,null,0]
["Pumpeinstallation Miljøklasse B (100-300 l/s) - SRO","stk.",10,null,0]
["Pumpeinstallation Miljøklasse B (300-600 l/s) - Mek/EL","stk.",20,null,0]
["Pumpeinstallation Miljøklasse B (300-600 l/s) - SRO","stk.",10,null,0]
["Pumpeinstallation Miljøklasse B (600-1.000 l/s) - Mek/EL","stk.",20,null,0]
["Pumpeinstallation Miljøklasse B (600-1.000 l/s) - SRO","stk.",10,null,0]
["Pumpeinstallation Miljøklasse B (1.000-1.500 l/s) - Mek/EL","stk.",20,null,0]
["Pumpeinstallation Miljøklasse B (1.000-1.500 l/s) - SRO","stk.",10,null,0]
["Overbygning ","m2",75,null,0]
["Store pumpestationer: inkl. SRO-anlæg - City"]
["Kælder","m2",75,null,0]
["Pumpeinstallation Miljøklasse A (100-300 l/s) - Mek/EL","stk.",20,null,0]
["Pumpeinstallation Miljøklasse A (100-300 l/s) - SRO","stk.",10,null,0]
["Pumpeinstallation Miljøklasse A (300-600 l/s) - Mek/EL","stk.",20,null,0]
["Pumpeinstallation Miljøklasse A (300-600 l/s) - SRO","stk.",10,null,0]
["Pumpeinstallation Miljøklasse A (600-1.000 l/s) - Mek/EL","stk.",20,null,0]
["Pumpeinstallation Miljøklasse A (600-1.000 l/s) - SRO","stk.",10,null,0]
["Pumpeinstallation Miljøklasse A (1.000-1.500 l/s) - Mek/EL","stk.",20,null,0]
["Pumpeinstallation Miljøklasse A (1.000-1.500 l/s) - SRO","stk.",10,null,0]
["Pumpeinstallation Miljøklasse B (100-300 l/s) - Mek/EL","stk.",20,null,0]
["Pumpeinstallation Miljøklasse B (100-300 l/s) - SRO","stk.",10,null,0]
["Pumpeinstallation Miljøklasse B (300-600 l/s) - Mek/EL","stk.",20,null,0]
["Pumpeinstallation Miljøklasse B (300-600 l/s) - SRO","stk.",10,null,0]
["Pumpeinstallation Miljøklasse B (600-1.000 l/s) - Mek/EL","stk.",20,null,0]
["Pumpeinstallation Miljøklasse B (600-1.000 l/s) - SRO","stk.",10,null,0]
["Pumpeinstallation Miljøklasse B (1.000-1.500 l/s) - Mek/EL","stk.",20,null,0]
["Pumpeinstallation Miljøklasse B (1.000-1.500 l/s) - SRO","stk.",10,null,0]
["Overbygning ","m2",75,null,0]
["Store pumpestationer: inkl. SRO-anlæg - Indre city"]
["Kælder","m2",75,null,0]
["Pumpeinstallation Miljøklasse A (100-300 l/s) - Mek/EL","stk.",20,null,0]
["Pumpeinstallation Miljøklasse A (100-300 l/s) - SRO","stk.",10,null,0]
["Pumpeinstallation Miljøklasse A (300-600 l/s) - Mek/EL","stk.",20,null,0]
["Pumpeinstallation Miljøklasse A (300-600 l/s) - SRO","stk.",10,null,0]
["Pumpeinstallation Miljøklasse A (600-1.000 l/s) - Mek/EL","stk.",20,null,0]
["Pumpeinstallation Miljøklasse A (600-1.000 l/s) - SRO","stk.",10,null,0]
["Pumpeinstallation Miljøklasse A (1.000-1.500 l/s) - Mek/EL","stk.",20,null,0]
["Pumpeinstallation Miljøklasse A (1.000-1.500 l/s) - SRO","stk.",10,null,0]
["Pumpeinstallation Miljøklasse B (100-300 l/s) - Mek/EL","stk.",20,null,0]
["Pumpeinstallation Miljøklasse B (100-300 l/s) - SRO","stk.",10,null,0]
["Pumpeinstallation Miljøklasse B (300-600 l/s) - Mek/EL","stk.",20,null,0]
["Pumpeinstallation Miljøklasse B (300-600 l/s) - SRO","stk.",10,null,0]
["Pumpeinstallation Miljøklasse B (600-1.000 l/s) - Mek/EL","stk.",20,null,0]
["Pumpeinstallation Miljøklasse B (600-1.000 l/s) - SRO","stk.",10,null,0]
["Pumpeinstallation Miljøklasse B (1.000-1.500 l/s) - Mek/EL","stk.",20,null,0]
["Pumpeinstallation Miljøklasse B (1.000-1.500 l/s) - SRO","stk.",10,null,0]
["Overbygning","m2",75,null,0]
["Overløbsbygværker - Land"]
["Kælder (< 7 m2) ","stk.",75,null,0]
["Kælder (7 - 20 m2) ","m2",75,null,0]
["Kælder (20 - 30 m2)","m2",75,null,0]
["Installationer \"ingen eller faste riste\" (mindre end 7 m2)","stk.",20,null,{"$f":"0+1","v":1}]
["Installationer \"mekaniske riste og SRO\" Miljøklasse A. (7-20 m2) - Mek/EL","stk.",20,null,12]
["Installationer \"mekaniske riste og SRO\" Miljøklasse A. (7-20 m2) - SRO","stk.",10,null,8]
["Installationer \"mekaniske riste og SRO\" Miljøklasse A. (20-30 m2) - Mek/EL","stk.",20,null,1]
["Installationer \"mekaniske riste og SRO\" Miljøklasse A. (20-30 m2) - SRO","stk.",10,null,1]
["Installationer \"mekaniske riste og SRO\" Miljøklasse B. (7-20 m2) - Mek/EL","stk.",20,null,0]
["Installationer \"mekaniske riste og SRO\" Miljøklasse B. (7-20 m2) - SRO","stk.",10,null,0]
["Installationer \"mekaniske riste og SRO\" Miljøklasse B. (20-30 m2) - Mek/EL","stk.",20,null,0]
["Installationer \"mekaniske riste og SRO\" Miljøklasse B. (20-30 m2) - SRO","stk.",10,null,0]
["Overbygning","stk.",75,null,0]
["Overløbsbygværker - By"]
["Kælder (< 7 m2) ","stk.",75,null,0]
["Kælder (7 - 20 m2) ","m2",75,null,0]
["Kælder (20 - 30 m2)","m2",75,null,0]
["Installationer \"ingen eller faste riste\" (mindre end 7 m2)","stk.",20,null,0]
["Installationer \"mekaniske riste og SRO\" Miljøklasse A. (7-20 m2) - Mek/EL","stk.",20,null,28]
["Installationer \"mekaniske riste og SRO\" Miljøklasse A. (7-20 m2) - SRO","stk.",10,null,4]
["Installationer \"mekaniske riste og SRO\" Miljøklasse A. (20-30 m2) - Mek/EL","stk.",20,null,2]
["Installationer \"mekaniske riste og SRO\" Miljøklasse A. (20-30 m2) - SRO","stk.",10,null,2]
["Installationer \"mekaniske riste og SRO\" Miljøklasse B. (7-20 m2) - Mek/EL","stk.",20,null,0]
["Installationer \"mekaniske riste og SRO\" Miljøklasse B. (7-20 m2) - SRO","stk.",10,null,0]
["Installationer \"mekaniske riste og SRO\" Miljøklasse B. (20-30 m2) - Mek/EL","stk.",20,null,0]
["Installationer \"mekaniske riste og SRO\" Miljøklasse B. (20-30 m2) - SRO","stk.",10,null,0]
["Overbygning","stk.",75,null,0]
["Overløbsbygværker - City"]
["Kælder (< 7 m2) ","stk.",75,null,0]
["Kælder (7 - 20 m2) ","m2",75,null,0]
["Kælder (20 - 30 m2)","m2",75,null,0]
["Installationer \"ingen eller faste riste\" (mindre end 7 m2)","stk.",20,null,0]
["Installationer \"mekaniske riste og SRO\" Miljøklasse A. (7-20 m2) - Mek/EL","stk.",20,null,0]
["Installationer \"mekaniske riste og SRO\" Miljøklasse A. (7-20 m2) - SRO","stk.",10,null,0]
["Installationer \"mekaniske riste og SRO\" Miljøklasse A. (20-30 m2) - Mek/EL","stk.",20,null,0]
["Installationer \"mekaniske riste og SRO\" Miljøklasse A. (20-30 m2) - SRO","stk.",10,null,0]
["Installationer \"mekaniske riste og SRO\" Miljøklasse B. (7-20 m2) - Mek/EL","stk.",20,null,0]
["Installationer \"mekaniske riste og SRO\" Miljøklasse B. (7-20 m2) - SRO","stk.",10,null,0]
["Installationer \"mekaniske riste og SRO\" Miljøklasse B. (20-30 m2) - Mek/EL","stk.",20,null,0]
["Installationer \"mekaniske riste og SRO\" Miljøklasse B. (20-30 m2) - SRO","stk.",10,null,0]
["Overbygning (efter beliggenhed) ","stk.",75,null,0]
["Overløbsbygværker - Indre city"]
["Kælder (< 7 m2) ","stk.",75,null,0]
["Kælder (7 - 20 m2) ","m2",75,null,0]
["Kælder (20 - 30 m2)","m2",75,null,0]
["Installationer \"ingen eller faste riste\" (mindre end 7 m2)","stk.",20,null,0]
["Installationer \"mekaniske riste og SRO\" Miljøklasse A. (7-20 m2) - Mek/EL","stk.",20,null,0]
["Installationer \"mekaniske riste og SRO\" Miljøklasse A. (7-20 m2) - SRO","stk.",10,null,0]
["Installationer \"mekaniske riste og SRO\" Miljøklasse A. (20-30 m2) - Mek/EL","stk.",20,null,0]
["Installationer \"mekaniske riste og SRO\" Miljøklasse A. (20-30 m2) - SRO","stk.",10,null,0]
["Installationer \"mekaniske riste og SRO\" Miljøklasse B. (7-20 m2) - Mek/EL","stk.",20,null,0]
["Installationer \"mekaniske riste og SRO\" Miljøklasse B. (7-20 m2) - SRO","stk.",10,null,0]
["Installationer \"mekaniske riste og SRO\" Miljøklasse B. (20-30 m2) - Mek/EL","stk.",20,null,0]
["Installationer \"mekaniske riste og SRO\" Miljøklasse B. (20-30 m2) - SRO","stk.",10,null,0]
["Overbygning","stk.",75,null,0]
["Forsinkelsesbassiner - Land"]
["Forsinkelsesbassiner, lukkede uden automatisk rensning og SRO Miljøklasse B (mindre end 1.000 m3)","m³",50,null,0]
["Forsinkelsesbassiner, lukkede med automatisk rensning og SRO Miljøklasse A (500-1.000 m3) - Konstruktioner","m³",75,null,2669]
["Forsinkelsesbassiner, lukkede med automatisk rensning og SRO Miljøklasse A (500-1.000 m3) - Mek/EL","m³",20,null,2669]
["Forsinkelsesbassiner, lukkede med automatisk rensning og SRO Miljøklasse A (500-1.000 m3) - SRO ","m³",10,null,2669]
["Forsinkelsesbassiner, lukkede med automatisk rensning og SRO Miljøklasse A (1.000-3.000 m3) - Konstruktioner","m³",75,null,3500]
["Forsinkelsesbassiner, lukkede med automatisk rensning og SRO Miljøklasse A (1.000-3.000 m3) - Mek/EL","m³",20,null,3500]
["Forsinkelsesbassiner, lukkede med automatisk rensning og SRO Miljøklasse A (1.000-3.000 m3) - SRO","m³",10,null,3500]
["Forsinkelsesbassiner, lukkede med automatisk rensning og SRO Miljøklasse A (5.000-10.000 m3) - Konstruktionre","m³",75,null,0]
["Forsinkelsesbassiner, lukkede med automatisk rensning og SRO Miljøklasse A (5.000-10.000 m3) - Mek/EL","m³",20,null,0]
["Forsinkelsesbassiner, lukkede med automatisk rensning og SRO Miljøklasse A (5.000-10.000 m3) - SRO","m³",10,null,0]
["Forsinkelsesbassiner, lukkede med automatisk rensning og SRO Miljøklasse A (større end 10.000 m3) - Konstruktioner","m³",75,null,0]
["Forsinkelsesbassiner, lukkede med automatisk rensning og SRO Miljøklasse A (større end 10.000 m3) - Mek/EL","m³",20,null,0]
["Forsinkelsesbassiner, lukkede med automatisk rensning og SRO Miljøklasse A (større end 10.000 m3) - SRO","m³",10,null,0]
["Forsinkelsesbassiner - By"]
["Forsinkelsesbassiner, lukkede uden automatisk rensning og SRO Miljøklasse B (mindre end 1.000 m3)","m³",50,null,0]
["Forsinkelsesbassiner, lukkede med automatisk rensning og SRO Miljøklasse A (500-1.000 m3) - Konstruktioner","m³",75,null,4672]
["Forsinkelsesbassiner, lukkede med automatisk rensning og SRO Miljøklasse A (500-1.000 m3) - Mek/EL","m³",20,null,4672]
["Forsinkelsesbassiner, lukkede med automatisk rensning og SRO Miljøklasse A (500-1.000 m3) - SRO ","m³",10,null,4672]
["Forsinkelsesbassiner, lukkede med automatisk rensning og SRO Miljøklasse A (1.000-3.000 m3) - Konstruktioner","m³",75,null,2725]
["Forsinkelsesbassiner, lukkede med automatisk rensning og SRO Miljøklasse A (1.000-3.000 m3) - Mek/EL","m³",20,null,2725]
["Forsinkelsesbassiner, lukkede med automatisk rensning og SRO Miljøklasse A (1.000-3.000 m3) - SRO","m³",10,null,2725]
["Forsinkelsesbassiner, lukkede med automatisk rensning og SRO Miljøklasse A (5.000-10.000 m3) - Konstruktionre","m³",75,null,0]
["Forsinkelsesbassiner, lukkede med automatisk rensning og SRO Miljøklasse A (5.000-10.000 m3) - Mek/EL","m³",20,null,0]
["Forsinkelsesbassiner, lukkede med automatisk rensning og SRO Miljøklasse A (5.000-10.000 m3) - SRO","m³",10,null,0]
["Forsinkelsesbassiner, lukkede med automatisk rensning og SRO Miljøklasse A (større end 10.000 m3) - Konstruktioner","m³",75,null,0]
["Forsinkelsesbassiner, lukkede med automatisk rensning og SRO Miljøklasse A (større end 10.000 m3) - Mek/EL","m³",20,null,0]
["Forsinkelsesbassiner, lukkede med automatisk rensning og SRO Miljøklasse A (større end 10.000 m3) - SRO","m³",10,null,0]
["Forsinkelsesbassiner - City"]
["Forsinkelsesbassiner, lukkede uden automatisk rensning og SRO Miljøklasse B (mindre end 1.000 m3)","m³",50,null,0]
["Forsinkelsesbassiner, lukkede med automatisk rensning og SRO Miljøklasse A (500-1.000 m3) - Konstruktioner","m³",75,null,0]
["Forsinkelsesbassiner, lukkede med automatisk rensning og SRO Miljøklasse A (500-1.000 m3) - Mek/EL","m³",20,null,0]
["Forsinkelsesbassiner, lukkede med automatisk rensning og SRO Miljøklasse A (500-1.000 m3) - SRO ","m³",10,null,0]
["Forsinkelsesbassiner, lukkede med automatisk rensning og SRO Miljøklasse A (1.000-3.000 m3) - Konstruktioner","m³",75,null,0]
["Forsinkelsesbassiner, lukkede med automatisk rensning og SRO Miljøklasse A (1.000-3.000 m3) - Mek/EL","m³",20,null,0]
["Forsinkelsesbassiner, lukkede med automatisk rensning og SRO Miljøklasse A (1.000-3.000 m3) - SRO","m³",10,null,0]
["Forsinkelsesbassiner, lukkede med automatisk rensning og SRO Miljøklasse A (5.000-10.000 m3) - Konstruktionre","m³",75,null,0]
["Forsinkelsesbassiner, lukkede med automatisk rensning og SRO Miljøklasse A (5.000-10.000 m3) - Mek/EL","m³",20,null,0]
["Forsinkelsesbassiner, lukkede med automatisk rensning og SRO Miljøklasse A (5.000-10.000 m3) - SRO","m³",10,null,0]
["Forsinkelsesbassiner, lukkede med automatisk rensning og SRO Miljøklasse A (større end 10.000 m3) - Konstruktioner","m³",75,null,0]
["Forsinkelsesbassiner, lukkede med automatisk rensning og SRO Miljøklasse A (større end 10.000 m3) - Mek/EL","m³",20,null,0]
["Forsinkelsesbassiner, lukkede med automatisk rensning og SRO Miljøklasse A (større end 10.000 m3) - SRO","m³",10,null,0]
["Forsinkelsesbassiner - Indre city"]
["Forsinkelsesbassiner, lukkede uden automatisk rensning og SRO Miljøklasse B (mindre end 1.000 m3)","m³",50,null,0]
["Forsinkelsesbassiner, lukkede med automatisk rensning og SRO Miljøklasse A (500-1.000 m3) - Konstruktioner","m³",75,null,0]
["Forsinkelsesbassiner, lukkede med automatisk rensning og SRO Miljøklasse A (500-1.000 m3) - Mek/EL","m³",20,null,0]
["Forsinkelsesbassiner, lukkede med automatisk rensning og SRO Miljøklasse A (500-1.000 m3) - SRO ","m³",10,null,0]
["Forsinkelsesbassiner, lukkede med automatisk rensning og SRO Miljøklasse A (1.000-3.000 m3) - Konstruktioner","m³",75,null,0]
["Forsinkelsesbassiner, lukkede med automatisk rensning og SRO Miljøklasse A (1.000-3.000 m3) - Mek/EL","m³",20,null,0]
["Forsinkelsesbassiner, lukkede med automatisk rensning og SRO Miljøklasse A (1.000-3.000 m3) - SRO","m³",10,null,0]
["Forsinkelsesbassiner, lukkede med automatisk rensning og SRO Miljøklasse A (5.000-10.000 m3) - Konstruktionre","m³",75,null,0]
["Forsinkelsesbassiner, lukkede med automatisk rensning og SRO Miljøklasse A (5.000-10.000 m3) - Mek/EL","m³",20,null,0]
["Forsinkelsesbassiner, lukkede med automatisk rensning og SRO Miljøklasse A (5.000-10.000 m3) - SRO","m³",10,null,0]
["Forsinkelsesbassiner, lukkede med automatisk rensning og SRO Miljøklasse A (større end 10.000 m3) - Konstruktioner","m³",75,null,0]
["Forsinkelsesbassiner, lukkede med automatisk rensning og SRO Miljøklasse A (større end 10.000 m3) - Mek/EL","m³",20,null,0]
["Forsinkelsesbassiner, lukkede med automatisk rensning og SRO Miljøklasse A (større end 10.000 m3) - SRO","m³",10,null,0]
["Sparebassin/laguner - Land"]
["Jordbassin Klasse B","m³",50,null,0]
["Jordbassin Klasse A","m³",50,null,33533]
["Indløb-/udløbsarrangement","stk.",75,null,112]
["Andre bygninger (tekniske installationer, målere mv.)","m2",75,null,0]
["Sparebassin/laguner - By"]
["Jordbassin Klasse B","m³",50,null,0]
["Jordbassin Klasse A","m³",50,null,23837]
["Indløb-/udløbsarrangement","stk.",75,null,97]
["Andre bygninger (tekniske installationer, målere mv.)","m2",75,null,0]
["Sparebassin/laguner - City"]
["Jordbassin Klasse B","m³",50,null,0]
["Jordbassin Klasse A","m³",50,null,0]
["Indløb-/udløbsarrangement","stk.",75,null,0]
["Andre bygninger (tekniske installationer, målere mv.)","m2",75,null,0]
["Sparebassin/laguner  - Indre city"]
["Jordbassin Klasse B","m³",50,null,0]
["Jordbassin Klasse A","m³",50,null,0]
["Indløb-/udløbsarrangement","stk.",75,null,0]
["Andre bygninger (tekniske installationer, målere mv.)","m2",75,null,0]

{"sheet":"Fællesfunktionsanlæg","index":2,"n_rows":16,"n_cols":5,"rows_kept":16,"cut":false,"hidden":false,"merged":[[0,4,1,4],[0,0,1,0],[0,1,1,1],[0,2,1,2],[0,3,1,3]]}
["Fællesfunktionsanlæg","Enhed","Standard-levetid","Samlet mængde per 31/12-2015","Bemærk-ninger"]
[]
[]
["Andre"]
["Administrationbygninger","m2",75,0]
["Arbejdsplads og kontor","stk.",5,9]
["Køretøjer, personbil","stk.",5,4]
["Køretøjer, små lastvogne (< 3.500 kg.)","stk.",5,6]
["Køretøjer, store lastvogne (> 3.500 kg.)","stk.",5,0]
["Køretøjer, entreprenørmaskiner","stk.",5,9]
["Slamsugere","stk.",5,0]
["Værksteder, garager","m2",75,985]
["Øvrige"]
["Solcelleanlæg","KWh",25,0]
["EDB, tablets og navigationsudstyr","stk.",5,0]
["Elektroniske kort","stk.",5,0]

{"sheet":"Drop downliste","index":3,"n_rows":13,"n_cols":11,"rows_kept":13,"cut":false,"hidden":true,"merged":[]}
[]
[null,"datakvalitet","Serviceselskab","Overheads","Infrastrukturomlægninger","Infrastruktur per år","år 1","år 2","år 3","år 4","år 5"]
[null,null,null,null,null,null,2010,2011,2012,2013,2014]
[null,1,"ja","Full-cost","ja",0.1]
[null,2,"nej","Direct-cost","nej",0.2]
[null,3,null,"Nøgletalsfordeling",null,0.3]
[null,null,null,"Activity based cost",null,0.4]
[null,null,null,"Andet",null,0.5]
[null,null,null,null,null,0.6]
[null,null,null,null,null,0.7]
[null,null,null,null,null,0.8]
[null,null,null,null,null,0.9]
[null,null,null,null,null,1]